bitfinex/quotes_BTCUSD_20220226
["timestamp","ask_amount","ask_price","bid_price","bid_amount"]
[1645865805544,0.02576,38758.0,38748.0,0.24716359]
[1645865805944,0.00029661,38752.0,38748.0,0.0474]
[1645865806744,0.11858487,38761.0,38748.0,0.0474]
[1645865806944,0.11858487,38761.0,38759.0,0.21261133]
[1645865808797,0.20015122,38762.0,38759.0,0.21261133]
[1645865808798,0.00029658,38762.0,38759.0,0.21261133]
[1645865809001,0.00029658,38762.0,38759.0,0.26001133]
[1645865809199,0.7311,38773.0,38759.0,0.26201133]
[1645865809200,0.12889487,38773.0,38759.0,0.26201133]
[1645865809401,0.31843951,38779.0,38760.0,1.0915582]
[1645865809600,0.00118608,38771.0,38762.0,0.1]
[1645865809801,0.00118608,38771.0,38770.0,0.18441229]
[1645865809999,0.00118608,38771.0,38770.0,0.23181229]
[1645865810403,0.11021,38787.0,38770.0,1.42317049]
[1645865810600,0.59068487,38789.0,38770.0,1.42317049]
[1645865810601,0.4721,38789.0,38773.0,0.1]
[1645865810799,0.00108827,38778.0,38774.0,0.82111]
[1645865811254,0.00108827,38778.0,38776.0,0.23853099]
[1645865811556,0.00108827,38778.0,38777.0,0.82105]
[1645865811752,0.02576,38791.0,38785.0,0.21853137]
[1645865811954,0.36276304,38780.0,38778.0,0.19489145]
[1645865812152,0.36276304,38780.0,38779.0,0.77361]
[1645865812358,0.36276304,38780.0,38779.0,0.87101]
[1645865813154,0.68092722,38780.0,38779.0,0.77361]
[1645865813358,0.88078186,38780.0,38779.0,0.77361]
[1645865813553,0.90654186,38780.0,38779.0,0.77361]
[1645865813954,1.22667,38779.0,38774.0,0.003]
[1645865814159,1.22667,38779.0,38766.0,0.05]
[1645865814160,0.42238366,38770.0,38766.0,0.05]
[1645865814357,0.31816418,38769.0,38754.0,0.02576]
[1645865814555,0.31816418,38769.0,38757.0,0.128993]
[1645865814802,0.31816418,38769.0,38757.0,0.176393]
[1645865815200,0.31816418,38769.0,38757.0,0.0474]
[1645865815400,0.33854512,38767.0,38759.0,0.17014953]
[1645865815600,0.00027354,38765.0,38759.0,0.17014953]
[1645865816002,0.00027354,38765.0,38754.0,0.25052]
[1645865816202,0.00027354,38765.0,38754.0,0.30052]
[1645865816402,0.31816418,38766.0,38754.0,0.30052]
[1645865816602,0.33164788,38776.0,38756.0,0.128993]
[1645865816802,0.00027355,38761.0,38756.0,0.228993]
[1645865817401,0.00027355,38761.0,38757.0,1.01205998]
[1645865817605,0.23909532,38769.0,38757.0,1.01205998]
[1645865817802,0.000265,38760.0,38757.0,1.01205998]
[1645865818001,0.000265,38760.0,38757.0,0.77402]
[1645865818201,0.000265,38760.0,38757.0,0.82142]
[1645865818642,0.000265,38760.0,38757.0,1.14275788]
[1645865818846,0.98261,38778.0,38759.0,0.02576]
[1645865819045,0.98261,38778.0,38775.0,0.19784989]
[1645865819245,0.21132394,38781.0,38775.0,0.19784989]
[1645865819445,0.02555412,38779.0,38775.0,0.19784989]
[1645865819645,0.36262302,38780.0,38775.0,0.19784989]
[1645865820447,0.00026487,38779.0,38775.0,0.19784989]
[1645865820845,0.34251247,38780.0,38775.0,0.19784989]
[1645865821248,0.34251247,38780.0,38775.0,0.20184989]
[1645865821448,0.34251247,38780.0,38776.0,0.0474]
[1645865821647,0.34251247,38780.0,38777.0,0.064466]
[1645865821847,0.31843951,38792.0,38779.0,1.25]
[1645865822050,0.01031,38797.0,38780.0,0.36756748]
[1645865822317,0.01031,38803.0,38794.0,0.19052936]
[1645865822514,0.01031,38803.0,38791.0,0.0474]
[1645865822515,0.22561464,38800.0,38791.0,0.0474]
[1645865822714,0.34419951,38794.0,38791.0,0.0474]
[1645865822920,0.22561464,38794.0,38791.0,0.0474]
[1645865823115,0.11858487,38792.0,38791.0,0.0474]
[1645865823316,0.31843951,38794.0,38791.0,0.0474]
[1645865824013,0.31843951,38796.0,38791.0,0.0474]
[1645865824616,0.34419951,38800.0,38791.0,0.0474]
[1645865824815,0.31843951,38800.0,38791.0,0.0374]
[1645865825017,0.11858487,38801.0,38793.0,0.21528947]
[1645865825217,0.10131574,38801.0,38793.0,0.0474]
[1645865825420,0.02576,38800.0,38793.0,0.0474]
[1645865826246,0.30117038,38802.0,38793.0,0.24644265]
[1645865826447,0.00029753,38798.0,38793.0,0.24644265]
[1645865826649,0.00029753,38798.0,38793.0,0.29644265]
[1645865827046,0.00029753,38798.0,38794.0,0.77332]
[1645865827249,0.10131574,38805.0,38795.0,0.0474]
[1645865827546,0.00029753,38797.0,38795.0,0.0474]
[1645865827747,0.00029753,38797.0,38796.0,0.77328]
[1645865827952,0.00029753,38797.0,38796.0,0.82068]
[1645865828150,0.00029753,38797.0,38796.0,0.999542]
[1645865828547,0.22561464,38810.0,38796.0,0.999542]
[1645865828747,0.02576,38810.0,38796.0,0.999542]
[1645865828951,0.02576,38807.0,38796.0,0.82068]
[1645865829149,0.02576,38802.0,38796.0,0.82068]
[1645865829350,0.10131574,38801.0,38796.0,0.82068]
[1645865829547,0.22561464,38802.0,38796.0,0.82068]
[1645865829548,0.02576,38802.0,38796.0,0.82068]
[1645865829812,0.18087398,38800.0,38796.0,0.82068]
[1645865830615,0.19985464,38804.0,38796.0,0.82068]
[1645865830812,0.30117038,38807.0,38796.0,0.82068]
[1645865831011,0.00021138,38802.0,38796.0,0.82068]
[1645865832011,0.21384097,38805.0,38797.0,0.21481904]
[1645865832211,0.00021138,38801.0,38798.0,0.0474]
[1645865833215,0.21384097,38805.0,38798.0,0.0474]
[1645865833216,0.21384097,38805.0,38798.0,0.0504]
[1645865833457,0.00021138,38801.0,38798.0,0.0504]
[1645865833654,0.00021138,38801.0,38798.0,0.03990057]
[1645865833854,1.2,38800.0,38796.0,0.77328]
[1645865834058,0.62133786,38799.0,38796.0,0.77328]
[1645865834256,0.02576,38798.0,38796.0,0.77328]
[1645865834455,0.01031,38797.0,38796.0,0.77328]
[1645865834654,0.33047748,38797.0,38796.0,0.77328]
[1645865834855,0.51399112,38797.0,38796.0,0.77328]
[1645865835256,0.51399112,38797.0,38796.0,0.77428]
[1645865836259,0.50368112,38797.0,38796.0,0.77428]
[1645865836456,0.50368112,38797.0,38796.0,0.77328]
[1645865837057,0.50368112,38797.0,38796.0,0.77314163]
[1645865837298,1.27576,38796.0,38791.0,0.001]
[1645865837497,1.27576,38796.0,38771.0,0.857425]
[1645865837498,0.02576,38791.0,38781.0,0.05]
[1645865837698,0.02576,38791.0,38769.0,0.064483]
[1645865837699,0.02576,38784.0,38769.0,0.064483]
[1645865837902,0.02576,38784.0,38767.0,0.0999]
[1645865837903,0.02576,38777.0,38770.0,0.77366]
[1645865838098,0.32212016,38784.0,38770.0,0.77366]
[1645865838099,0.30117038,38774.0,38770.0,0.77366]
[1645865838296,0.32212016,38773.0,38770.0,0.77366]
[1645865838501,0.19985464,38771.0,38770.0,0.77366]
[1645865838698,0.5219748,38771.0,38770.0,0.77366]
[1645865839496,0.19985464,38776.0,38770.0,0.77366]
[1645865839698,0.10131574,38777.0,38770.0,0.77366]
[1645865840097,0.12707574,38777.0,38770.0,0.77366]
[1645865840297,0.02576,38777.0,38770.0,0.77366]
[1645865840697,0.10131574,38778.0,38770.0,0.77366]
[1645865841161,0.02576,38777.0,38770.0,0.77366]
[1645865841558,0.16581721,38778.0,38770.0,0.77366]
[1645865841755,0.19435837,38776.0,38770.0,0.77366]
[1645865842354,0.10131574,38777.0,38770.0,0.77366]
[1645865842556,0.32212016,38776.0,38770.0,0.77366]
[1645865842757,0.32212016,38776.0,38770.0,7.12e-06]
[1645865842758,0.19435837,38771.0,38770.0,7.12e-06]
[1645865842958,0.19435837,38771.0,38764.0,0.05]
[1645865842960,1.00974269,38771.0,38764.0,0.05]
[1645865843159,0.02576,38764.0,38757.0,0.0031]
[1645865843357,0.29567411,38760.0,38757.0,0.0031]
[1645865843557,0.61807121,38759.0,38757.0,0.0031]
[1645865843759,0.3223971,38758.0,38757.0,0.0031]
[1645865844360,0.3223971,38765.0,38757.0,0.0031]
[1645865844819,0.3223971,38768.0,38757.0,0.0031]
[1645865845520,0.3223971,38768.0,38765.0,0.23492476]
[1645865846120,0.3223971,38768.0,38757.0,0.0031]
[1645865846328,0.10131574,38769.0,38757.0,0.0031]
[1645865846523,0.51675547,38768.0,38757.0,0.0031]
[1645865846724,0.54251547,38768.0,38757.0,0.0031]
[1645865846928,0.51675547,38768.0,38757.0,0.0031]
[1645865847125,0.42246329,38763.0,38757.0,0.0031]
[1645865847328,0.10131574,38758.0,38757.0,0.0051]
[1645865847526,0.42371284,38758.0,38757.0,0.0051]
[1645865848327,0.19435837,38759.0,38757.0,0.0051]
[1645865848549,0.19435837,38759.0,38756.0,0.0001]
[1645865848951,0.30598411,38764.0,38756.0,0.0001]
[1645865849146,0.68141829,38769.0,38756.0,0.0001]
[1645865849147,0.02576,38768.0,38756.0,0.0001]
[1645865849347,0.02576,38768.0,38761.0,0.18444321]
[1645865851354,0.02576,38768.0,38756.0,0.0001]
[1645865851355,0.19435837,38760.0,38756.0,0.0001]
[1645865851556,0.3223971,38759.0,38756.0,0.0001]
[1645865851750,0.31658032,38759.0,38756.0,0.0001]
[1645865852050,0.31331613,38759.0,38756.0,0.0001]
[1645865854206,0.3223971,38760.0,38756.0,0.0001]
[1645865854806,0.3223971,38763.0,38756.0,0.0001]
[1645865855107,0.3223971,38767.0,38756.0,0.0001]
[1645865855306,0.54251547,38771.0,38756.0,0.064604]
[1645865855706,0.54251547,38771.0,38765.0,0.22228175]
[1645865856247,0.01031,38776.0,38765.0,0.22228175]
[1645865856248,0.3327071,38776.0,38765.0,0.22228175]
[1645865856449,0.61807121,38776.0,38765.0,0.22228175]
[1645865856748,0.3223971,38776.0,38765.0,0.22228175]
[1645865857146,0.3223971,38776.0,38771.0,0.20320657]
[1645865858148,0.29567411,38775.0,38771.0,0.20320657]
[1645865858448,0.3223971,38780.0,38771.0,0.20320657]
[1645865859046,0.3223971,38780.0,38765.0,0.0474]
[1645865859251,0.3481571,38780.0,38766.0,0.005]
[1645865859907,0.29567411,38768.0,38766.0,0.005]
[1645865860110,0.3223971,38767.0,38766.0,0.005]
[1645865860506,0.3223971,38771.0,38764.0,0.18012678]
[1645865860806,0.3327071,38774.0,38764.0,0.18012678]
[1645865861006,0.10131574,38773.0,38764.0,0.18012678]
[1645865861208,0.3223971,38772.0,38764.0,0.18012678]
[1645865861507,0.3327071,38774.0,38764.0,0.18012678]
[1645865861910,0.3223971,38774.0,38764.0,0.18012678]
[1645865862506,0.3223971,38774.0,38764.0,0.17839978]
[1645865862906,0.3223971,38774.0,38770.0,0.17060172]
[1645865864056,0.29567411,38775.0,38770.0,0.17060172]
[1645865864256,0.29567411,38775.0,38770.0,0.17044772]
[1645865864257,0.19435837,38775.0,38770.0,0.17044772]
[1645865864463,0.29567411,38775.0,38770.0,0.17044772]
[1645865864959,0.10131574,38769.0,38760.0,0.05]
[1645865865159,0.3223971,38768.0,38756.0,0.0001]
[1645865865360,0.19435837,38768.0,38765.0,0.002]
[1645865865558,0.42371284,38767.0,38765.0,0.002]
[1645865865758,0.75439361,38766.0,38765.0,0.002]
[1645865865961,0.02576,38765.0,38756.0,0.0001]
[1645865866160,0.10131574,38759.0,38756.0,0.0001]
[1645865866360,0.3223971,38758.0,38756.0,0.0001]
[1645865866963,0.10131574,38763.0,38756.0,0.0001]
[1645865867206,0.3223971,38762.0,38756.0,0.0001]
[1645865868007,0.3223971,38762.0,38756.0,0.20328228]
[1645865868211,0.10131574,38758.0,38756.0,0.0001]
[1645865868408,0.3223971,38757.0,38756.0,0.0001]
[1645865869009,0.3481571,38761.0,38756.0,0.0001]
[1645865869409,0.3223971,38761.0,38756.0,0.0001]
[1645865870011,0.29567411,38758.0,38756.0,0.0001]
[1645865870213,0.31658062,38757.0,38756.0,0.0001]
[1645865871646,0.02576,38761.0,38756.0,0.0001]
[1645865871647,0.10131574,38759.0,38756.0,0.0001]
[1645865871947,0.3481571,38758.0,38756.0,0.0001]
[1645865872151,0.3223971,38758.0,38756.0,0.0001]
[1645865872347,0.3327071,38761.0,38756.0,0.0001]
[1645865872648,0.29567411,38763.0,38756.0,0.0001]
[1645865872847,0.3223971,38762.0,38756.0,0.0001]
[1645865875406,1.2,38761.0,38754.0,0.18986063]
[1645865875607,0.3223971,38760.0,38754.0,0.18986063]
[1645865877906,0.01031,38765.0,38754.0,0.18986063]
[1645865877907,0.01031,38765.0,38754.0,0.23726063]
[1645865878107,0.3223971,38770.0,38754.0,0.28726063]
[1645865878453,0.3223971,38770.0,38754.0,0.31302063]
[1645865878853,0.3223971,38770.0,38764.0,0.22107798]
[1645865879253,0.3223971,38774.0,38764.0,0.22107798]
[1645865880254,0.3481571,38774.0,38757.0,0.0474]
[1645865880453,0.10131574,38770.0,38755.0,0.064507]
[1645865880654,0.3223971,38769.0,38755.0,0.064507]
[1645865881253,0.3223971,38769.0,38761.0,0.22443551]
[1645865882056,0.3481571,38772.0,38761.0,0.22443551]
[1645865882303,0.19435837,38771.0,38761.0,0.22443551]
[1645865882508,0.01031,38774.0,38761.0,0.22443551]
[1645865882509,0.29567411,38766.0,38761.0,0.22443551]
[1645865883602,0.29567411,38766.0,38761.0,0.21943551]
[1645865884003,0.3223971,38765.0,38758.0,0.0474]
[1645865884204,0.3223971,38765.0,38753.0,0.00129082]
[1645865884405,0.3481571,38768.0,38753.0,0.00129082]
[1645865884603,0.29567411,38763.0,38756.0,0.00436082]
[1645865884803,0.3223971,38762.0,38756.0,0.00436082]
[1645865885006,0.3223971,38762.0,38756.0,0.17481036]
[1645865886049,0.29567411,38766.0,38756.0,0.17481036]
[1645865886846,0.10131574,38764.0,38756.0,0.17481036]
[1645865887047,0.19435837,38763.0,38756.0,0.17481036]
[1645865887451,0.19435837,38763.0,38756.0,0.00436082]
[1645865888347,0.30598411,38766.0,38756.0,0.00436082]
[1645865888954,0.30598411,38766.0,38738.0,0.71781994]
[1645865888955,0.20466837,38766.0,38738.0,0.71781994]
[1645865889150,0.20466837,38766.0,38736.0,0.194528]
[1645865889151,0.19435837,38740.0,38723.0,0.05668481]
[1645865889351,0.1,38753.0,38709.0,0.56131122]
[1645865889352,0.7021381,38739.0,38709.0,0.56131122]
[1645865889552,0.19435837,38733.0,38706.0,0.0561297]
[1645865889817,0.10131574,38734.0,38706.0,0.0511297]
[1645865889818,0.2499,38730.0,38706.0,0.0511297]
[1645865890013,1.1551971,38729.0,38706.0,0.0511297]
[1645865890218,0.7854,38724.0,38706.0,0.0511297]
[1645865890416,0.02576,38716.0,38706.0,0.0511297]
[1645865890720,0.14871574,38715.0,38706.0,0.0061297]
[1645865890914,0.3327271,38714.0,38706.0,0.0061297]
[1645865891114,0.3327271,38714.0,38705.0,0.0072105]
[1645865891115,0.16911837,38708.0,38705.0,0.0033402]
[1645865891317,0.42271284,38707.0,38705.0,0.0033402]
[1645865891514,0.3223971,38706.0,38705.0,0.0033402]
[1645865891715,0.064609,38709.0,38705.0,0.0033402]
[1645865891914,0.0474,38713.0,38705.0,0.0033402]
[1645865892314,0.3223971,38720.0,38705.0,0.0033402]
[1645865892315,0.42271284,38720.0,38705.0,0.0033402]
[1645865892514,0.59183121,38720.0,38707.0,0.00028389]
[1645865892717,0.49151547,38720.0,38707.0,0.00028389]
[1645865892913,0.3223971,38720.0,38707.0,0.00028389]
[1645865893116,0.0474,38725.0,38719.0,0.1]
[1645865893316,0.26943411,38736.0,38713.0,0.07544426]
[1645865893317,0.0474,38738.0,38715.0,0.02576]
[1645865893568,0.5,38735.0,38720.0,0.05028379]
[1645865893764,0.10031574,38742.0,38720.0,0.05028379]
[1645865893765,0.3223971,38734.0,38720.0,0.10028379]
[1645865893965,0.06456237,38738.0,38720.0,0.05028379]
[1645865894164,0.26943411,38733.0,38720.0,0.00028379]
[1645865894364,0.3327071,38737.0,38720.0,0.00028379]
[1645865894365,0.3223971,38732.0,38720.0,0.00028379]
[1645865894565,0.3223971,38736.0,38720.0,0.02576]
[1645865894765,0.01031,38735.0,38724.0,0.00028377]
[1645865894965,0.3223971,38736.0,38724.0,0.00028377]
[1645865895165,0.16911837,38737.0,38724.0,0.00028377]
[1645865895373,0.3223971,38736.0,38724.0,0.00428377]
[1645865895766,0.3223971,38736.0,38724.0,0.004]
[1645865895767,0.26943411,38733.0,38724.0,0.004]
[1645865895965,0.3223971,38732.0,38724.0,0.004]
[1645865896165,0.26943411,38733.0,38728.0,0.00028374]
[1645865896364,0.31791994,38732.0,38728.0,0.00028374]
[1645865896765,0.31791994,38735.0,38728.0,0.00028374]
[1645865897065,0.31791994,38735.0,38725.0,0.21854647]
[1645865897300,0.31791994,38735.0,38730.0,0.00023478]
[1645865897596,0.26943411,38733.0,38730.0,0.00023478]
[1645865897795,0.10031574,38731.0,38730.0,0.00023478]
[1645865897999,0.31791994,38731.0,38730.0,0.00023478]
[1645865898196,0.01031,38733.0,38728.0,0.003]
[1645865898197,0.59766405,38733.0,38728.0,0.003]
[1645865898397,0.59766405,38733.0,38729.0,0.00023479]
[1645865899397,0.32822994,38733.0,38729.0,0.003]
[1645865899697,0.31916766,38733.0,38729.0,0.00323479]
[1645865899898,0.10031574,38730.0,38729.0,0.00323479]
[1645865900102,0.41823568,38730.0,38729.0,0.00314479]
[1645865900298,0.42854568,38730.0,38729.0,0.00314479]
[1645865900601,0.42854568,38730.0,38729.0,0.00291]
[1645865900800,0.39280569,38730.0,38726.0,9.634e-05]
[1645865901048,0.064576,38729.0,38726.0,9.634e-05]
[1645865901248,0.31791994,38728.0,38726.0,9.634e-05]
[1645865901458,0.58735405,38728.0,38726.0,6.34e-06]
[1645865901650,0.58735405,38728.0,38705.0,0.0033402]
[1645865901651,5.366e-05,38724.0,38705.0,0.0033402]
[1645865901955,0.26943411,38715.0,38705.0,0.0033402]
[1645865902150,0.31791994,38714.0,38705.0,0.0033402]
[1645865902549,0.31791994,38714.0,38710.0,0.19271676]
[1645865902752,0.31791994,38722.0,38710.0,0.19271676]
[1645865903154,5.366e-05,38724.0,38710.0,0.26847676]
[1645865903349,5.366e-05,38724.0,38710.0,0.29011676]
[1645865903549,5.366e-05,38724.0,38711.0,0.02576]
[1645865903750,5.366e-05,38724.0,38716.0,0.19652561]
[1645865904454,5.366e-05,38724.0,38718.0,0.00028322]
[1645865904710,0.85,38723.0,38716.0,0.18180883]
[1645865905806,0.85,38723.0,38722.0,0.20426373]
[1645865906607,0.85,38723.0,38713.0,0.0474]
[1645865906808,0.3164811,38722.0,38710.0,0.0474]
[1645865907606,0.85,38723.0,38710.0,0.0474]
[1645865907607,0.85,38723.0,38718.0,0.19634004]
[1645865908208,0.3164811,38722.0,38710.0,0.0474]
[1645865909153,0.12607574,38721.0,38710.0,0.0474]
[1645865909347,0.85,38723.0,38714.0,0.000279]
[1645865909747,0.3164811,38722.0,38715.0,0.0474]
[1645865909948,0.85,38723.0,38715.0,0.0474]
[1645865910348,0.3164811,38722.0,38719.0,0.24354938]
[1645865910748,0.85,38723.0,38719.0,0.24354938]
[1645865910954,0.11632098,38722.0,38719.0,0.24354938]
[1645865911149,0.11632098,38722.0,38719.0,0.19354938]
[1645865911150,0.3164811,38722.0,38719.0,0.19354938]
[1645865911352,5.366e-05,38724.0,38719.0,0.19354938]
[1645865911556,5.366e-05,38724.0,38720.0,0.0474]
[1645865912412,5.366e-05,38724.0,38721.0,0.02576]
[1645865912609,0.08239,38733.0,38723.0,0.02576]
[1645865912806,0.08239,38733.0,38726.0,0.02576]
[1645865913005,0.08239,38733.0,38728.0,0.02576]
[1645865913207,0.08239,38733.0,38730.0,0.02576]
[1645865913513,0.08239,38733.0,38731.0,0.0474]
[1645865913708,0.08239,38733.0,38732.0,0.0474]
[1645865915409,0.081885,38733.0,38732.0,0.0474]
[1645865915809,0.00029638,38743.0,38733.0,1.15]
[1645865916056,0.00029638,38743.0,38734.0,0.0474]
[1645865916256,0.3258644,38751.0,38735.0,0.02576]
[1645865916453,0.16911837,38747.0,38737.0,0.20882959]
[1645865916756,0.00021321,38743.0,38738.0,0.0474]
[1645865917558,0.01031,38753.0,38749.0,0.23878753]
[1645865917756,0.8201,38766.0,38750.0,0.0474]
[1645865917757,0.7317,38761.0,38750.0,0.0474]
[1645865917952,0.3155544,38761.0,38750.0,0.0474]
[1645865918154,0.3800824,38763.0,38750.0,0.0474]
[1645865918355,0.02576,38760.0,38750.0,0.0474]
[1645865918558,0.12607574,38758.0,38750.0,0.0474]
[1645865918754,0.3155544,38757.0,38750.0,0.0474]
[1645865918953,0.34161102,38757.0,38750.0,0.0474]
[1645865919154,0.3355762,38757.0,38750.0,0.0474]
[1645865919553,0.3098162,38757.0,38750.0,0.0494]
[1645865919806,0.41013194,38757.0,38750.0,0.0494]
[1645865920000,1.2,38756.0,38749.0,0.23290406]
[1645865920200,0.31475001,38755.0,38750.0,0.0474]
[1645865921106,0.31445338,38755.0,38750.0,0.0474]
[1645865921504,0.00029663,38754.0,38750.0,0.0474]
[1645865922301,0.16484804,38761.0,38750.0,0.0474]
[1645865922502,0.11021,38762.0,38754.0,0.21826332]
[1645865922704,0.0999,38762.0,38755.0,0.0474]
[1645865922901,0.31445338,38761.0,38755.0,0.0474]
[1645865923306,0.31598443,38751.0,38747.0,0.05]
[1645865923545,0.31598443,38751.0,38750.0,0.066515]
[1645865923751,0.31598443,38751.0,38750.0,0.938095]
[1645865924145,0.31598443,38751.0,38750.0,0.963855]
[1645865924744,0.31598443,38751.0,38750.0,0.961855]
[1645865924944,0.00021323,38752.0,38751.0,1.2]
[1645865925146,0.00021323,38752.0,38751.0,1.437658]
[1645865925344,0.00021323,38752.0,38751.0,1.487658]
[1645865925552,0.00085253,38769.0,38767.0,0.18563488]
[1645865926044,0.31554972,38775.0,38767.0,0.23303488]
[1645865926547,1.18357837,38779.0,38767.0,0.23303488]
[1645865926548,0.32585972,38777.0,38767.0,0.23303488]
[1645865926747,0.31554972,38777.0,38767.0,0.31745488]
[1645865927202,0.30554972,38777.0,38767.0,0.31745488]
[1645865927403,0.00029705,38774.0,38767.0,0.31745488]
[1645865927602,0.00029705,38774.0,38767.0,0.31945488]
[1645865927807,0.00029705,38774.0,38767.0,0.43394188]
[1645865928204,0.00029705,38774.0,38768.0,0.02576]
[1645865928402,0.01,38779.0,38769.0,0.0474]
[1645865928602,0.01,38779.0,38770.0,0.0474]
[1645865928603,0.00029705,38772.0,38770.0,0.0474]
[1645865928804,0.00029705,38772.0,38771.0,0.0474]
[1645865929607,0.34130972,38778.0,38771.0,0.0474]
[1645865929804,0.00029705,38773.0,38771.0,0.0474]
[1645865930408,0.00029705,38773.0,38766.0,0.003]
[1645865930409,1.2,38772.0,38766.0,0.003]
[1645865930608,0.16911837,38768.0,38766.0,0.003]
[1645865930809,0.34020772,38767.0,38757.0,0.05]
[1645865931055,0.34020772,38767.0,38750.0,0.0474]
[1645865931257,0.34020772,38767.0,38751.0,0.21986228]
[1645865931457,0.01031,38766.0,38752.0,0.004]
[1645865932258,0.00028865,38761.0,38757.0,0.23628127]
[1645865933258,0.03607,38768.0,38755.0,0.064507]
[1645865933459,0.00028865,38761.0,38752.0,0.002]
[1645865934262,0.00028865,38761.0,38757.0,0.20842013]
[1645865934460,0.01031,38766.0,38757.0,0.20842013]
[1645865934710,0.00028866,38758.0,38748.0,0.05]
[1645865934903,0.00028866,38758.0,38744.0,0.257971]
[1645865935104,0.00028866,38758.0,38743.0,0.6626]
[1645865935303,0.00028866,38758.0,38744.0,0.77418]
[1645865935703,0.41476346,38760.0,38749.0,0.21731147]
[1645865935904,0.31444772,38760.0,38749.0,0.21731147]
[1645865936305,0.02576,38764.0,38749.0,0.21731147]
[1645865936502,0.01031,38763.0,38749.0,0.21731147]
[1645865936704,0.35051772,38763.0,38749.0,0.21731147]
[1645865937303,0.35051772,38763.0,38749.0,0.26731147]
[1645865937504,0.35051772,38763.0,38749.0,0.27131147]
[1645865938303,0.35051772,38763.0,38749.0,0.22131147]
[1645865938553,0.02576,38761.0,38749.0,0.22131147]
[1645865938851,0.35051772,38761.0,38749.0,0.21731147]
[1645865939052,0.32475772,38763.0,38749.0,0.21731147]
[1645865939252,0.02576,38764.0,38749.0,0.26731147]
[1645865939458,0.31444772,38767.0,38750.0,0.0474]
[1645865939652,0.00029221,38757.0,38750.0,0.0474]
[1645865939851,0.00029221,38757.0,38756.0,0.21970011]
[1645865940052,0.00029221,38757.0,38756.0,0.26710011]
[1645865940252,0.00029221,38757.0,38756.0,0.31710011]
[1645865940453,0.24316848,38769.0,38756.0,0.0974]
[1645865940454,0.31444772,38768.0,38756.0,0.0974]
[1645865940654,0.00029221,38758.0,38756.0,0.0974]
[1645865940852,0.00029221,38758.0,38756.0,0.0474]
[1645865941453,0.00029221,38758.0,38757.0,0.19214757]
[1645865941655,0.31444772,38768.0,38757.0,0.19214757]
[1645865941854,0.00029221,38759.0,38757.0,0.19214757]
[1645865942504,0.00029221,38759.0,38757.0,0.30664957]
[1645865942905,0.31444772,38768.0,38757.0,0.30664957]
[1645865943107,0.09359382,38770.0,38758.0,0.55]
[1645865943305,0.31336426,38769.0,38758.0,0.55]
[1645865943507,0.09359382,38770.0,38758.0,0.62576]
[1645865943708,0.09359382,38770.0,38768.0,0.18418634]
[1645865944107,0.09359382,38770.0,38768.0,0.23418634]
[1645865944505,0.09359382,38770.0,38769.0,0.0474]
[1645865944712,0.40695808,38770.0,38769.0,0.0474]
[1645865945106,0.09359382,38770.0,38769.0,0.0474]
[1645865945506,0.08859382,38770.0,38764.0,0.007]
[1645865945806,0.08859382,38770.0,38769.0,0.190182]
[1645865946253,0.08859382,38770.0,38769.0,0.240182]
[1645865947051,0.08859382,38770.0,38769.0,0.363342]
[1645865947256,0.08859382,38770.0,38769.0,1.137152]
[1645865947454,0.01,38779.0,38771.0,0.128944]
[1645865947654,0.01,38779.0,38772.0,1.15803878]
[1645865947853,0.01,38779.0,38778.0,0.19991264]
[1645865948053,0.01,38779.0,38778.0,0.29731264]
[1645865949724,0.01,38779.0,38778.0,0.30131264]
[1645865950716,0.01,38779.0,38778.0,0.29731264]
[1645865951816,0.01,38779.0,38778.0,0.29931264]
[1645865952015,0.01,38779.0,38778.0,0.0994]
[1645865952218,0.01,38779.0,38778.0,0.052]
[1645865952618,0.01,38779.0,38778.0,0.002]
[1645865952818,0.01,38779.0,38772.0,0.938229]
[1645865953219,0.01,38779.0,38773.0,0.20773183]
[1645865953855,0.00028217,38778.0,38773.0,0.20773183]
[1645865954051,0.00028217,38778.0,38774.0,0.77371]
[1645865954251,0.00028217,38778.0,38774.0,0.29234989]
[1645865954852,0.01,38779.0,38774.0,0.29234989]
[1645865955057,0.00028217,38778.0,38774.0,0.29234989]
[1645865955653,0.00028217,38778.0,38774.0,0.29434989]
[1645865956052,0.01,38779.0,38774.0,0.29434989]
[1645865956255,0.00028217,38778.0,38774.0,0.29434989]
[1645865956858,0.00028217,38778.0,38774.0,0.29234989]
[1645865957056,0.00028217,38778.0,38774.0,0.24234989]
[1645865957305,0.01,38779.0,38774.0,0.24234989]
[1645865957505,0.00028119,38778.0,38774.0,0.24434989]
[1645865957712,0.00028119,38778.0,38774.0,0.19434989]
[1645865958504,0.01,38779.0,38774.0,0.19434989]
[1645865958705,0.01,38779.0,38775.0,0.20324938]
[1645865958706,0.00028119,38778.0,38775.0,0.20324938]
[1645865959604,0.00028119,38778.0,38775.0,0.20424938]
[1645865959804,0.00028119,38778.0,38775.0,0.26872238]
[1645865960005,0.01,38779.0,38775.0,0.26872238]
[1645865960809,0.01,38779.0,38774.0,0.19234989]
[1645865961258,0.01,38779.0,38774.0,0.24234989]
[1645865961656,0.01,38779.0,38774.0,0.24434989]
[1645865962058,0.01,38779.0,38777.0,0.0999]
[1645865962258,0.01,38779.0,38777.0,0.27979422]
[1645865962460,0.01,38779.0,38777.0,0.17989422]
[1645865962659,0.01,38779.0,38777.0,0.29436322]
[1645865963263,0.03607,38793.0,38778.0,1.2]
[1645865963264,0.01031,38793.0,38778.0,1.2]
[1645865963462,0.2436,38794.0,38789.0,0.17403751]
[1645865963660,0.34807502,38788.0,38784.0,0.0474]
[1645865963863,0.34807502,38788.0,38787.0,0.17766001]
[1645865965210,0.34807502,38788.0,38786.0,0.0474]
[1645865968558,0.3144011,38787.0,38786.0,0.0474]
[1645865968954,0.3144011,38787.0,38777.0,0.0474]
[1645865969152,0.3144011,38787.0,38775.0,0.0474]
[1645865969553,0.00027856,38784.0,38775.0,0.0474]
[1645865969955,0.26971267,38784.0,38774.0,0.19234989]
[1645865970155,0.3144011,38783.0,38774.0,0.19234989]
[1645865970757,0.00027856,38780.0,38774.0,0.19234989]
[1645865971558,0.00027856,38780.0,38774.0,0.19434989]
[1645865971752,0.3144011,38783.0,38774.0,0.19434989]
[1645865971953,0.0002816,38779.0,38774.0,0.19434989]
[1645865972908,0.01031,38785.0,38774.0,0.19234989]
[1645865973107,0.0002816,38778.0,38774.0,0.19234989]